fUSD/lending_fUSD_20250608
["ID","MTS","AMOUNT","RATE_DAILY","PERIOD"]
[364991654,1749385847430,-322.635219,0.0001927,3]
[364991656,1749385847440,-152.498506,0.0001927,3]
[364991658,1749385847449,-500.0,0.00019276,2]
[364991659,1749385847459,-150.0,0.00019276,2]
[364991662,1749385847470,-203.35740725,0.00019276,2]
[364991663,1749385847481,-610.0,0.00019276,2]
[364991666,1749385847491,-203.6039194,0.00019276,2]
[364991668,1749385847500,-500.0,0.00019276,2]
[364991669,1749385847511,-1078.0,0.00019285,2]
[364991671,1749385847520,-150.0,0.00019287,2]
[364991673,1749385847529,-150.0,0.00019287,2]
[364991675,1749385847539,-150.0,0.00019287,2]
[364991677,1749385847548,-213.97218168,0.00019287,2]
[364991679,1749385847558,-500.0,0.00019287,2]
[364991681,1749385847567,-150.0,0.00019287,2]
[364991683,1749385847578,-500.0,0.00019287,2]
[364991685,1749385847587,-500.0,0.00019287,2]
[364991687,1749385847596,-150.0,0.00019287,2]
[364991689,1749385847606,-155.8635147,0.00019287,2]
[364991691,1749385847616,-150.0,0.00019287,2]
[364991692,1749385847625,-150.0,0.00019287,2]
[364991694,1749385847634,-150.0,0.00019287,2]
[364991696,1749385847644,-150.0,0.00019287,2]
[364991698,1749385847653,-150.0,0.00019287,2]
[364991700,1749385847663,-500.0,0.00019288,2]
[364991701,1749385847673,-581.0,0.00019288,2]
[364991703,1749385847683,-204.34453879,0.00019288,2]
[364991705,1749385847693,-500.0,0.00019288,2]
[364991707,1749385847703,-6810.7693057,0.000193,2]
[364991709,1749385847712,-1000.0,0.000193,2]
[364991711,1749385847722,-283.221034,0.000193,2]
[364991713,1749385847731,-4700.0,0.000193,7]
[364991715,1749385847740,-500.0,0.00019304,2]
[364991717,1749385847750,-150.0,0.00019304,2]
[364991719,1749385847761,-610.0,0.00019304,2]
[364991720,1749385847771,-500.0,0.00019304,2]
[364991722,1749385847780,-152.30567012,0.00019312,2]
[364991724,1749385847791,-975.56,0.00019314,2]
[364991726,1749385847800,-150.0,0.00019315,2]
[364991728,1749385847810,-150.0,0.00019315,2]
[364991730,1749385847820,-150.0,0.00019315,2]
[364991732,1749385847830,-500.0,0.00019315,2]
[364991734,1749385847840,-150.0,0.00019315,2]
[364991736,1749385847849,-500.0,0.00019315,2]
[364991738,1749385847858,-500.0,0.00019315,2]
[364991740,1749385847868,-150.0,0.00019315,2]
[364991742,1749385847877,-203.39189019,0.00019315,2]
[364991744,1749385847887,-150.0,0.00019315,2]
[364991746,1749385847896,-150.0,0.00019315,2]
[364991747,1749385847906,-150.0,0.00019315,2]
[364991749,1749385847915,-200.63288875,0.00019315,2]
[364991751,1749385847924,-305.22703741,0.00019315,2]
[364991753,1749385847934,-581.0,0.00019315,2]
[364991755,1749385847943,-500.0,0.00019315,2]
[364991757,1749385847953,-600.0,0.00019317,4]
[364991759,1749385847963,-300.0,0.00019317,2]
[364991761,1749385847973,-300.0,0.00019317,2]
[364991763,1749385847983,-500.0,0.00019331,2]
[364991765,1749385847993,-150.0,0.00019331,2]
[364991766,1749385848002,-610.0,0.00019331,2]
[364991768,1749385848012,-500.0,0.00019331,2]
[364991770,1749385848022,-480.0,0.00019342,2]
[364991772,1749385848033,-283.221034,0.00019342,2]
[364991774,1749385848043,-283.221034,0.00019342,2]
[364991776,1749385848054,-283.221034,0.00019342,2]
[364991778,1749385848064,-283.221034,0.00019342,2]
[364991780,1749385848074,-283.22103,0.00019342,2]
[364991782,1749385848085,-480.0,0.00019342,2]
[364991784,1749385848095,-480.0,0.00019342,2]
[364991786,1749385848106,-480.0,0.00019342,2]
[364991788,1749385848116,-480.0,0.00019342,2]
[364991790,1749385848126,-480.0,0.00019342,2]
[364991792,1749385848135,-152.07009867,0.00019342,2]
[364991793,1749385848145,-402.45804945,0.00019342,2]
[364991795,1749385848155,-480.0,0.00019342,2]
[364991797,1749385848166,-480.0,0.00019342,2]
[364991799,1749385848176,-480.0,0.00019342,2]
[364991801,1749385848186,-478.72432793,0.00019342,2]
[364991803,1749385848195,-480.0,0.00019342,2]
[364991805,1749385848207,-480.0,0.00019342,2]
[364991807,1749385848217,-480.0,0.00019342,2]
[364991809,1749385848227,-480.0,0.00019342,2]
[364991811,1749385848237,-480.0,0.00019342,2]
[364991813,1749385848246,-491.45,0.00019342,2]
[364991815,1749385848256,-480.0,0.00019342,2]
[364991817,1749385848266,-480.0,0.00019342,2]
[364991818,1749385848275,-256.22700541,0.00019342,2]
[364991821,1749385848285,-480.0,0.00019342,2]
[364991822,1749385848295,-480.0,0.00019342,2]
[364991824,1749385848304,-1000.0,0.00019342,2]
[364991826,1749385848314,-480.0,0.00019342,2]
[364991828,1749385848324,-480.0,0.00019342,2]
[364991830,1749385848334,-480.0,0.00019342,2]
[364991832,1749385848344,-359.69815453,0.00019342,2]
[364991834,1749385848353,-519.09,0.00019342,2]
[364991836,1749385848363,-480.0,0.00019342,2]
[364991838,1749385848373,-480.0,0.00019342,2]
[364991840,1749385848383,-480.0,0.00019342,2]
[364991842,1749385848393,-480.0,0.00019342,2]
[364991844,1749385848403,-480.0,0.00019342,2]
[364991846,1749385848413,-480.0,0.00019342,2]
[364991848,1749385848423,-480.0,0.00019342,2]
[364991850,1749385848433,-538.83,0.00019342,2]
[364991851,1749385848442,-762.38,0.00019342,2]
[364991853,1749385848452,-480.0,0.00019342,2]
[364991855,1749385848462,-480.0,0.00019342,2]
[364991857,1749385848472,-480.0,0.00019342,2]
[364991859,1749385848481,-480.0,0.00019342,2]
[364991861,1749385848491,-480.0,0.00019342,2]
[364991863,1749385848501,-480.0,0.00019342,2]
[364991865,1749385848510,-480.0,0.00019342,2]
[364991867,1749385848520,-480.0,0.00019342,2]
[364991869,1749385848529,-586.52,0.00019342,2]
[364991871,1749385848538,-480.0,0.00019342,2]
[364991873,1749385848548,-480.0,0.00019342,2]
[364991875,1749385848558,-480.0,0.00019342,2]
[364991877,1749385848567,-480.0,0.00019342,2]
[364991879,1749385848577,-480.0,0.00019342,2]
[364991881,1749385848587,-480.0,0.00019342,2]
[364991883,1749385848597,-480.0,0.00019342,2]
[364991885,1749385848608,-480.0,0.00019342,2]
[364991887,1749385848617,-480.0,0.00019342,2]
[364991889,1749385848627,-480.0,0.00019342,2]
[364991891,1749385848637,-480.0,0.00019342,2]
[364991893,1749385848646,-754.53,0.00019342,2]
[364991894,1749385848656,-480.0,0.00019342,2]
[364991896,1749385848666,-236.75159151,0.00019342,2]
[364991899,1749385848676,-480.0,0.00019342,2]
[364991900,1749385848686,-718.91,0.00019342,2]
[364991902,1749385848696,-480.0,0.00019342,2]
[364991904,1749385848707,-480.0,0.00019342,2]
[364991906,1749385848717,-256.3626344,0.00019342,2]
[364991908,1749385848727,-480.0,0.00019342,2]
[364991910,1749385848736,-480.0,0.00019342,2]
[364991912,1749385848746,-1428.66,0.00019342,2]
[364991914,1749385848756,-480.0,0.00019342,2]
[364991916,1749385848766,-480.0,0.00019342,2]
[364991918,1749385848776,-1242.72,0.00019342,2]
[364991920,1749385848785,-480.0,0.00019342,2]
[364991922,1749385848795,-480.0,0.00019342,2]
[364991924,1749385848804,-480.0,0.00019342,2]
[364991926,1749385848814,-480.0,0.00019342,2]
[364991928,1749385848824,-1678.27,0.00019342,2]
[364991930,1749385848835,-305.52167071,0.00019342,2]
[364991932,1749385848845,-480.0,0.00019342,2]
[364991934,1749385848855,-525.05617284,0.00019342,2]
[364991936,1749385848865,-440.48,0.00019342,2]
[364991938,1749385848875,-480.0,0.00019342,2]
[364991940,1749385848885,-480.0,0.00019342,2]
[364991942,1749385848895,-642.5,0.00019342,2]
[364991944,1749385848905,-480.0,0.00019342,2]
[364991945,1749385848915,-480.0,0.00019342,2]
[364991946,1749385848925,-790.11,0.00019342,2]
[364991947,1749385848934,-2859.82,0.00019342,2]
[364991948,1749385848943,-480.0,0.00019342,2]
[364991949,1749385848954,-480.0,0.00019342,2]
[364991950,1749385848964,-480.0,0.00019342,2]
[364991951,1749385848973,-480.0,0.00019342,2]
[364991952,1749385848984,-367.55,0.00019342,2]
[364991953,1749385848995,-250.54,0.00019342,2]
[364991955,1749385849005,-480.0,0.00019342,2]
[364991957,1749385849014,-480.0,0.00019342,2]
[364991959,1749385849024,-400.09534661,0.00019342,2]
[364991961,1749385849034,-480.0,0.00019342,2]
[364991963,1749385849043,-480.0,0.00019342,2]
[364991965,1749385849052,-480.0,0.00019342,2]
[364991967,1749385849062,-480.0,0.00019342,2]
[364991969,1749385849072,-691.53,0.00019342,2]
[364991971,1749385849082,-480.0,0.00019342,2]
[364991972,1749385849092,-1593.28,0.00019342,2]
[364991974,1749385849102,-480.0,0.00019342,2]
[364991976,1749385849111,-663.77,0.00019342,2]
[364991979,1749385849121,-242.09887461,0.00019342,2]
[364991980,1749385849131,-480.0,0.00019342,2]
[364991982,1749385849140,-480.0,0.00019342,2]
[364991984,1749385849150,-232.2478134,0.00019342,2]
[364991986,1749385849159,-1193.84,0.00019342,2]
[364991988,1749385849173,-480.0,0.00019342,2]
[364991990,1749385849183,-3078.27,0.00019342,2]
[364991992,1749385849193,-480.0,0.00019342,2]
[364991994,1749385849203,-480.0,0.00019342,2]
[364991996,1749385849212,-499.12,0.00019342,2]
[364991998,1749385849222,-1529.93,0.00019342,2]
[364992000,1749385849233,-480.0,0.00019342,2]
[364992002,1749385849242,-2782.34,0.00019342,2]
[364992004,1749385849252,-480.0,0.00019342,2]
[364992006,1749385849262,-480.0,0.00019342,2]
[364992008,1749385849271,-956.15,0.00019342,2]
[364992010,1749385849280,-480.0,0.00019342,2]
[364992012,1749385849292,-635.79,0.00019342,2]
[364992014,1749385849301,-480.0,0.00019342,2]
[364992016,1749385849311,-480.0,0.00019342,2]
[364992018,1749385849320,-934.04,0.00019342,2]
[364992020,1749385849330,-2189.81,0.00019342,2]
[364992022,1749385849340,-480.0,0.00019342,2]
[364992024,1749385849353,-480.0,0.00019342,2]
[364992026,1749385849363,-563.91,0.00019342,2]
[364992028,1749385849373,-480.0,0.00019342,2]
[364992030,1749385849383,-49283.5,0.00019342,2]
[364992032,1749385849393,-480.0,0.00019342,2]
[364992034,1749385849403,-493.03,0.00019342,2]
[364992036,1749385849413,-480.0,0.00019342,2]
[364992053,1749385849576,-480.0,0.00019342,2]
[364992055,1749385849586,-504.93424112,0.00019342,2]
[364992057,1749385849596,-576.32,0.00019342,2]
[364992059,1749385849606,-346.6132499,0.00019342,2]
[364992061,1749385849615,-1871.24,0.00019342,2]
[364992063,1749385849625,-480.0,0.00019342,2]
[364992065,1749385849635,-628.18,0.00019342,2]
[364992067,1749385849643,-480.0,0.00019342,2]
[364992069,1749385849653,-480.0,0.00019342,2]
[364992071,1749385849662,-480.0,0.00019342,2]
[364992072,1749385849671,-770.28,0.00019342,2]
[364992074,1749385849680,-480.0,0.00019342,2]
[364992076,1749385849691,-480.0,0.00019342,2]
[364992079,1749385849700,-480.0,0.00019342,2]
[364992081,1749385849711,-480.0,0.00019342,2]
[364992082,1749385849721,-480.0,0.00019342,2]
[364992084,1749385849731,-546.57,0.00019342,2]
[364992086,1749385849740,-480.0,0.00019342,2]
[364992088,1749385849750,-480.0,0.00019342,2]
[364992090,1749385849759,-480.0,0.00019342,2]
[364992092,1749385849768,-232.52304128,0.00019342,2]
[364992094,1749385849777,-480.0,0.00019342,2]
[364992096,1749385849788,-480.0,0.00019342,2]
[364992098,1749385849798,-480.0,0.00019342,2]
[364992100,1749385849807,-480.0,0.00019342,2]
[364992102,1749385849816,-564.41,0.00019342,2]
[364992104,1749385849825,-480.0,0.00019342,2]
[364992106,1749385849835,-532.76,0.00019342,2]
[364992108,1749385849844,-4221.08,0.00019342,2]
[364992110,1749385849853,-3800.57,0.00019342,2]
[364992112,1749385849863,-1947.47,0.00019342,2]
[364992114,1749385849872,-480.0,0.00019342,2]
[364992116,1749385849882,-150.0,0.00019342,2]
[364992118,1749385849891,-150.0,0.00019342,2]
[364992120,1749385849900,-500.0,0.00019342,2]
[364992122,1749385849909,-150.0,0.00019342,2]
[364992124,1749385849919,-500.0,0.00019342,2]
[364992126,1749385849927,-500.0,0.00019342,2]
[364992128,1749385849937,-150.0,0.00019342,2]
[364992130,1749385849946,-150.0,0.00019342,2]
[364992132,1749385849955,-252.89912974,0.00019342,2]
[364992134,1749385849964,-150.0,0.00019342,2]
[364992136,1749385849974,-581.0,0.00019342,2]
[364992137,1749385849983,-256.0,0.00019342,2]
[364992139,1749385849993,-1036.75811785,0.00019349,2]
[364992141,1749385850003,-451.58294013,0.00019349,2]
[364992144,1749385850014,-1000.0,0.0001935,2]
[364992146,1749385850025,-2981.50650972,0.00019351,2]
[364992147,1749385850034,-502.89368345,0.00019359,2]
[364992149,1749385850043,-150.0,0.00019359,2]
[364992151,1749385850052,-610.0,0.00019359,2]
[364992153,1749385850061,-500.0,0.00019359,2]
[364992155,1749385850071,-523.0,0.00019369,2]
[364992157,1749385850080,-250.0,0.0001937,2]
[364992159,1749385850090,-185.56769454,0.0001937,2]
[364992161,1749385850099,-350.0,0.0001937,2]
[364992163,1749385850108,-250.0,0.0001937,2]
[364992165,1749385850117,-408.0,0.0001937,2]
[364992167,1749385850126,-351.96658791,0.0001937,2]
[364992169,1749385850135,-250.0,0.0001937,2]
[364992171,1749385850144,-250.0,0.0001937,2]
[364992173,1749385850153,-250.0,0.0001937,2]
[364992175,1749385850162,-581.0,0.0001937,2]
[364992177,1749385850171,-248.86685413,0.00019379,2]
[364992179,1749385850180,-250.0,0.00019386,2]
[364992181,1749385850189,-610.0,0.00019386,2]
[364992183,1749385850199,-500.0,0.00019386,2]
[364992185,1749385850208,-152.30567012,0.00019395,2]
[364992187,1749385850218,-581.0,0.00019397,2]
[364992189,1749385850227,-500.0,0.00019399,2]
[364992190,1749385850236,-1000.0,0.000194,2]
[364992193,1749385850246,-322.635219,0.000194,5]
[364992194,1749385850255,-1104.0,0.000194,2]
[364992196,1749385850264,-6200.0,0.000194,7]
[364992198,1749385850273,-252.38555369,0.00019406,2]
[364992200,1749385850282,-610.0,0.00019413,2]
[364992202,1749385850291,-161.20852273,0.00019422,2]
[364992204,1749385850300,-581.0,0.00019425,2]
[364992206,1749385850310,-610.0,0.00019441,2]
[364992207,1749385850319,-151.0,0.00019443,12]
[364992208,1749385850328,-1000.0,0.0001945,2]
[364992209,1749385850338,-581.0,0.00019452,2]
[364992210,1749385850349,-156.290974,0.00019456,3]
[364992211,1749385850358,-322.635219,0.00019456,3]
[364992212,1749385850367,-152.498506,0.00019456,3]
[364992213,1749385850377,-2981.50650972,0.0001946,2]
[364992214,1749385850386,-610.0,0.00019468,2]
[364992216,1749385850396,-152.30567012,0.00019477,2]
[364992218,1749385850405,-581.0,0.00019479,2]
[364992219,1749385850414,-150.0,0.00019479,4]
[364992221,1749385850423,-248.82484129,0.00019479,4]
[364992223,1749385850433,-150.0,0.00019479,4]
[364992225,1749385850442,-315.62753533,0.00019479,4]
[364992227,1749385850451,-150.0,0.00019479,4]
[364992229,1749385850461,-150.0,0.00019479,4]
[364992231,1749385850470,-150.0,0.00019479,4]
[364992233,1749385850480,-150.0,0.00019479,4]
[364992235,1749385850489,-150.0,0.00019479,4]
[364992237,1749385850498,-150.0,0.00019479,4]
[364992238,1749385850508,-150.0,0.00019479,4]
[364992240,1749385850517,-150.0,0.00019479,4]
[364992242,1749385850526,-150.0,0.00019479,4]
[364992244,1749385850535,-165.96405833,0.00019487,13]
[364992246,1749385850544,-248.82484129,0.00019494,4]
[364992248,1749385850553,-315.62753533,0.00019494,4]
[364992250,1749385850563,-610.0,0.00019496,2]
[364992252,1749385850572,-150.0,0.00019496,4]
[364992254,1749385850582,-1313.97,0.000195,2]
[364992256,1749385850591,-1000.0,0.000195,2]
[364992258,1749385850600,-161.28496899,0.000195,2]
[364992260,1749385850611,-7800.0,0.000195,7]
[364992262,1749385850620,-975.56,0.00019505,2]
[364992264,1749385850629,-150.0,0.00019506,4]
[364992266,1749385850638,-150.0,0.00019506,2]
[364992268,1749385850647,-1112.35549685,0.00019506,2]
[364992270,1749385850657,-150.0,0.00019506,2]
[364992272,1749385850666,-10958.58662988,0.00019506,2]
[364992274,1749385850676,-480.0,0.00019506,2]
[364992276,1749385850685,-476.98991037,0.00019506,2]
[364992277,1749385850694,-480.0,0.00019506,2]
[364992279,1749385850704,-480.0,0.00019506,2]
[364992281,1749385850713,-480.0,0.00019506,2]
[364992283,1749385850722,-595.90019315,0.00019506,2]
[364992285,1749385850731,-608.85034936,0.00019506,2]
[364992287,1749385850740,-524.51,0.00019506,2]
[364992289,1749385850749,-480.0,0.00019506,2]
[364992291,1749385850758,-480.0,0.00019506,2]
[364992293,1749385850767,-322.7315456,0.00019506,2]
[364992295,1749385850776,-480.0,0.00019506,2]
[364992297,1749385850785,-898.14079271,0.00019506,2]
[364992299,1749385850794,-480.0,0.00019506,2]
[364992301,1749385850803,-519.09,0.00019506,2]
[364992303,1749385850812,-480.0,0.00019506,2]
[364992304,1749385850821,-629.70936495,0.00019506,2]
[364992306,1749385850831,-538.83,0.00019506,2]
[364992308,1749385850840,-762.38,0.00019506,2]
[364992310,1749385850849,-480.0,0.00019506,2]
[364992312,1749385850859,-480.0,0.00019506,2]
[364992314,1749385850868,-480.0,0.00019506,2]
[364992316,1749385850877,-480.0,0.00019506,2]
[364992318,1749385850886,-480.0,0.00019506,2]
[364992320,1749385850895,-586.52,0.00019506,2]
[364992322,1749385850904,-406.88735591,0.00019506,2]
[364992324,1749385850913,-480.0,0.00019506,2]
[364992326,1749385850922,-480.0,0.00019506,2]
[364992328,1749385850931,-480.0,0.00019506,2]
[364992330,1749385850942,-480.0,0.00019506,2]
[364992332,1749385850952,-480.0,0.00019506,2]
[364992334,1749385850962,-754.53,0.00019506,2]
[364992336,1749385850971,-480.0,0.00019506,2]
[364992338,1749385850980,-480.0,0.00019506,2]
[364992340,1749385850989,-718.91,0.00019506,2]
[364992342,1749385850998,-480.0,0.00019506,2]
[364992343,1749385851007,-480.0,0.00019506,2]
[364992345,1749385851017,-1428.66,0.00019506,2]
[364992347,1749385851027,-1242.72,0.00019506,2]
[364992349,1749385851036,-480.0,0.00019506,2]
[364992351,1749385851045,-480.0,0.00019506,2]
[364992353,1749385851055,-480.0,0.00019506,2]
[364992355,1749385851064,-480.0,0.00019506,2]
[364992357,1749385851073,-1678.27,0.00019506,2]
[364992359,1749385851083,-480.0,0.00019506,2]
[364992361,1749385851092,-480.0,0.00019506,2]
[364992363,1749385851101,-642.5,0.00019506,2]
[364992365,1749385851111,-480.0,0.00019506,2]
[364992367,1749385851120,-790.11,0.00019506,2]
[364992369,1749385851129,-2859.82,0.00019506,2]
[364992371,1749385851138,-480.0,0.00019506,2]
[364992373,1749385851147,-288.83536176,0.00019506,2]
[364992375,1749385851156,-480.0,0.00019506,2]
[364992377,1749385851165,-209.06817851,0.00019506,2]
[364992379,1749385851174,-480.0,0.00019506,2]
[364992381,1749385851183,-480.0,0.00019506,2]
[364992382,1749385851192,-480.0,0.00019506,2]
[364992384,1749385851201,-480.0,0.00019506,2]
[364992386,1749385851212,-691.53,0.00019506,2]
[364992388,1749385851222,-1593.28,0.00019506,2]
[364992390,1749385851231,-337.29005049,0.00019506,2]
[364992392,1749385851240,-663.77,0.00019506,2]
[364992394,1749385851249,-480.0,0.00019506,2]
[364992396,1749385851259,-1193.84,0.00019506,2]
[364992398,1749385851268,-480.0,0.00019506,2]
[364992400,1749385851277,-3078.27,0.00019506,2]
[364992402,1749385851286,-480.0,0.00019506,2]
[364992404,1749385851295,-480.0,0.00019506,2]
[364992406,1749385851304,-499.12,0.00019506,2]
[364992408,1749385851313,-1529.93,0.00019506,2]
[364992410,1749385851323,-480.0,0.00019506,2]
[364992412,1749385851332,-2782.34,0.00019506,2]
[364992414,1749385851341,-480.0,0.00019506,2]
[364992415,1749385851354,-480.0,0.00019506,2]
[364992416,1749385851363,-956.15,0.00019506,2]
[364992417,1749385851372,-480.0,0.00019506,2]
[364992418,1749385851381,-635.79,0.00019506,2]
[364992419,1749385851390,-480.0,0.00019506,2]
[364992420,1749385851399,-480.0,0.00019506,2]
[364992421,1749385851409,-934.04,0.00019506,2]
[364992422,1749385851418,-2189.81,0.00019506,2]
[364992423,1749385851427,-480.0,0.00019506,2]
[364992425,1749385851436,-480.0,0.00019506,2]
[364992426,1749385851446,-563.91,0.00019506,2]
[364992427,1749385851457,-480.0,0.00019506,2]
[364992428,1749385851467,-49283.5,0.00019506,2]
[364992429,1749385851476,-357.15627434,0.00019506,2]
[364992430,1749385851485,-493.03,0.00019506,2]
[364992431,1749385851494,-480.0,0.00019506,2]
[364992432,1749385851504,-480.0,0.00019506,2]
[364992433,1749385851513,-576.32,0.00019506,2]
[364992434,1749385851523,-1871.24,0.00019506,2]
[364992435,1749385851532,-480.0,0.00019506,2]
[364992436,1749385851541,-628.18,0.00019506,2]
[364992437,1749385851550,-480.0,0.00019506,2]
[364992438,1749385851560,-480.0,0.00019506,2]
[364992439,1749385851569,-480.0,0.00019506,2]
[364992440,1749385851579,-770.28,0.00019506,2]
[364992441,1749385851589,-480.0,0.00019506,2]
[364992442,1749385851599,-480.0,0.00019506,2]
[364992443,1749385851609,-480.0,0.00019506,2]
[364992445,1749385851619,-480.0,0.00019506,2]
[364992447,1749385851629,-480.0,0.00019506,2]
[364992448,1749385851639,-546.57,0.00019506,2]
[364992449,1749385851648,-480.0,0.00019506,2]
[364992450,1749385851658,-480.0,0.00019506,2]
[364992451,1749385851667,-480.0,0.00019506,2]
[364992452,1749385851677,-480.0,0.00019506,2]
[364992453,1749385851687,-480.0,0.00019506,2]
[364992454,1749385851697,-480.0,0.00019506,2]
[364992455,1749385851710,-564.41,0.00019506,2]
[364992456,1749385851720,-480.0,0.00019506,2]
[364992457,1749385851729,-532.76,0.00019506,2]
[364992458,1749385851739,-4221.08,0.00019506,2]
[364992459,1749385851748,-3800.57,0.00019506,2]
[364992460,1749385851758,-1947.47,0.00019506,2]
[364992461,1749385851767,-480.0,0.00019506,2]
[364992462,1749385851776,-399.23586095,0.00019506,2]
[364992463,1749385851785,-581.0,0.00019507,2]
[364992464,1749385851795,-248.82484129,0.00019508,4]
[364992465,1749385851804,-315.62753533,0.00019508,4]
[364992466,1749385851813,-150.0,0.00019511,4]
[364992467,1749385851822,-150.0,0.00019513,4]
[364992468,1749385851831,-248.82484129,0.00019522,4]
[364992469,1749385851840,-315.62753533,0.00019522,4]
[364992470,1749385851848,-610.0,0.00019523,2]
[364992471,1749385851858,-252.38555365,0.0001953,2]
[364992472,1749385851867,-150.0,0.0001953,4]
[364992473,1749385851875,-150.0,0.0001953,4]
[364992474,1749385851884,-150.0,0.00019532,4]
[364992475,1749385851893,-581.0,0.00019534,2]
[364992476,1749385851902,-248.82484129,0.00019537,4]
[364992477,1749385851911,-315.62753533,0.00019537,4]
[364992478,1749385851920,-150.0,0.00019543,4]
[364992479,1749385851930,-150.0,0.00019546,4]
[364992480,1749385851939,-1000.0,0.0001955,2]
[364992481,1749385851948,-156.290974,0.0001955,5]
[364992482,1749385851960,-322.635219,0.0001955,5]
[364992483,1749385851969,-610.0,0.0001955,2]
[364992484,1749385851978,-248.82484129,0.00019551,4]
[364992485,1749385851987,-315.62753533,0.00019551,4]
[364992486,1749385851996,-150.0,0.00019558,4]
[364992487,1749385852005,-152.30567012,0.00019559,2]
[364992488,1749385852014,-581.0,0.00019562,2]
[364992489,1749385852023,-150.0,0.00019563,4]
[364992490,1749385852032,-248.82484129,0.00019566,4]
[364992491,1749385852040,-315.62753533,0.00019566,4]
[364992492,1749385852049,-150.0,0.00019568,4]
[364992493,1749385852058,-2981.50650972,0.0001957,2]
[364992494,1749385852068,-248.86685413,0.00019571,2]
[364992495,1749385852077,-150.0,0.00019574,4]
[364992496,1749385852086,-610.0,0.00019578,2]
[364992497,1749385852095,-150.0,0.0001958,4]
[364992498,1749385852105,-248.82484129,0.0001958,4]
[364992499,1749385852114,-315.62753533,0.0001958,4]
[364992500,1749385852123,-150.0,0.00019581,4]
[364992501,1749385852133,-150.0,0.00019585,4]
[364992502,1749385852142,-581.0,0.00019589,2]
[364992503,1749385852151,-248.82484129,0.00019594,4]
[364992504,1749385852160,-315.62753533,0.00019594,4]
[364992505,1749385852170,-150.0,0.00019596,4]
[364992506,1749385852179,-1000.0,0.000196,2]
[364992507,1749385852190,-1500.0,0.000196,7]
[364992508,1749385852200,-610.0,0.00019605,2]
[364992509,1749385852212,-150.0,0.00019606,4]
[364992510,1749385852221,-248.82484129,0.00019609,4]
[364992511,1749385852231,-315.62753533,0.00019609,4]
[364992512,1749385852241,-150.0,0.00019609,4]
[364992513,1749385852250,-150.0,0.00019609,4]
[364992514,1749385852260,-337.47,0.00019609,2]
[364992515,1749385852270,-354.4,0.00019609,2]
[364992516,1749385852279,-2067.32,0.00019609,2]
[364992517,1749385852288,-354.4,0.00019609,2]
[364992518,1749385852298,-173.09,0.00019609,2]
[364992519,1749385852308,-354.4,0.00019609,2]
[364992520,1749385852318,-170.63,0.00019609,2]
[364992521,1749385852328,-354.4,0.00019609,2]
[364992522,1749385852337,-518.22,0.00019609,2]
[364992523,1749385852346,-150.0,0.00019611,4]
[364992524,1749385852356,-150.0,0.00019613,4]
[364992525,1749385852366,-581.0,0.00019616,2]